bitfinex/quotes_ETHUSD_20250703
["timestamp","ask_amount","ask_price","bid_price","bid_amount"]
[1751544172834,9.776,2599.7,2599.4,0.8067]
[1751544173140,9.776,2599.7,2599.6,3.84674565]
[1751544175353,10.0,2600.0,2599.8,3.84641363]
[1751544175664,9.772,2599.9,2599.8,3.84641363]
[1751544176371,9.772,2599.9,2599.7,3.8465633]
[1751544176574,9.772,2599.9,2599.4,4.6536416]
[1751544176764,9.772,2599.9,2599.6,3.84673529]
[1751544177153,9.772,2599.9,2599.7,3.8465298]
[1751544177356,9.772,2599.9,2599.8,3.84644972]
[1751544178156,9.772,2599.9,2599.6,4.03866924]
[1751544178469,9.772,2599.9,2599.8,0.02]
[1751544180595,43.570838,2599.9,2599.8,0.02]
[1751544181277,40.90408572,2599.9,2599.8,0.02]
[1751544181466,50.67608572,2599.9,2599.8,0.02]
[1751544184878,52.71319679,2599.9,2599.8,0.02]
[1751544185395,53.07079059,2599.9,2599.8,0.02]
[1751544185564,52.71319679,2599.9,2599.8,0.02]
[1751544186589,52.71319679,2599.9,2599.2,0.02]
[1751544186590,10.55,2599.6,2599.2,0.02]
[1751544186794,50.09748572,2599.3,2599.2,0.02]
[1751544186962,51.90359679,2599.3,2599.2,0.02]
[1751544187161,0.58356243,2600.2,2599.2,0.8337]
[1751544187366,0.35762815,2600.5,2600.2,0.8137]
[1751544187665,7.925,2600.5,2600.2,0.8137]
[1751544187864,8.117,2600.5,2600.2,0.8137]
[1751544188294,0.192,2600.5,2600.3,3.84571011]
[1751544188495,9.852,2600.4,2600.3,3.84571011]
[1751544188693,9.852,2600.4,2600.2,4.65948346]
[1751544189007,9.851,2600.3,2600.2,4.65948346]
[1751544189385,9.851,2600.3,2600.2,3.84578346]
[1751544189568,9.851,2600.3,2600.1,0.192]
[1751544189764,9.851,2600.3,2600.0,3.84615197]
[1751544190092,10.043,2600.3,2600.0,3.84615197]
[1751544190400,10.043,2600.3,2599.9,4.63173599]
[1751544190602,10.043,2600.3,2600.0,3.84605648]
[1751544190973,9.848,2600.2,2600.1,3.84600592]
[1751544191387,9.848,2600.2,2600.1,4.6937719]
[1751544193077,9.856,2600.2,2600.1,4.6937719]
[1751544193925,0.01,2601.0,2600.1,5.45046943]
[1751544194082,11.169,2600.9,2600.8,3.84486982]
[1751544194281,29.106,2600.9,2600.8,3.84486982]
[1751544195220,29.10215362,2600.9,2600.8,3.84486982]
[1751544196312,29.10215362,2600.9,2600.7,3.84505238]
[1751544198723,29.10215362,2600.9,2600.7,3.84504704]
[1751544199429,0.01,2601.0,2600.9,3.84482294]
[1751544199596,9.871,2601.0,2600.9,3.84482294]
[1751544201010,9.871,2601.0,2600.9,4.03682294]
[1751544201830,9.8718,2601.0,2600.9,4.03682294]
[1751544202035,1.9348,2601.0,2600.9,4.03682294]
[1751544202240,9.8678,2601.0,2600.9,4.03682294]
[1751544203434,9.8678,2601.0,2600.5,0.8263]
[1751544203640,10.0598,2601.0,2600.7,3.84503762]
[1751544204413,10.0598,2601.0,2600.8,3.84494951]
[1751544205221,10.0598,2601.0,2600.7,3.84504859]
[1751544205635,10.0598,2601.0,2600.6,3.84518038]
[1751544205838,10.0598,2601.0,2600.7,3.84511059]
[1751544206709,10.0598,2601.0,2600.8,3.84489323]
[1751544207141,10.0598,2601.0,2600.7,3.84503728]
[1751544207737,10.0598,2601.0,2600.5,4.86361883]
[1751544207907,10.0598,2601.0,2600.7,3.84511579]
[1751544209443,10.0598,2601.0,2600.6,3.84519046]
[1751544209642,10.0598,2601.0,2600.5,4.03735163]
[1751544209863,17.16842983,2601.0,2600.5,0.192]
[1751544210146,0.192,2600.7,2600.2,4.0377369]
[1751544210344,7.921,2600.6,2600.2,4.0377369]
[1751544210925,7.10862983,2600.4,2600.2,0.192]
[1751544211126,9.844,2600.3,2600.1,3.84596418]
[1751544214156,9.844,2600.3,2600.0,0.192]
[1751544214464,10.036,2600.3,2600.0,3.8460464]
[1751544214960,9.871,2600.2,2600.1,3.8459036]
[1751544217629,9.871,2600.2,2600.0,4.03808716]
[1751544218146,9.871,2600.2,2600.0,0.192]
[1751544218858,9.871,2600.2,2600.0,4.0380862]
[1751544219463,9.871,2600.2,2600.0,0.192]
[1751544220432,9.871,2600.2,2600.0,4.03815083]
[1751544225768,9.871,2600.2,2600.0,0.192]
[1751544226365,9.871,2600.2,2599.9,3.84622562]
[1751544226540,10.063,2600.2,2599.9,3.84622562]
[1751544227975,10.063,2600.2,2599.8,4.85278189]
[1751544228142,10.063,2600.2,2599.8,1.0064]
[1751544228473,0.8272,2600.0,2599.4,3.84697547]
[1751544228689,0.192,2599.8,2599.4,0.192]
[1751544228887,8.093,2599.7,2599.2,4.05923347]
[1751544229058,1.955,2599.6,2599.2,4.05923347]
[1751544229253,7.902,2599.5,2599.2,0.212]
[1751544229454,7.902,2599.5,2599.4,3.84704162]
[1751544230379,7.902,2599.5,2599.2,0.212]
[1751544230380,7.902,2599.5,2599.2,4.05927526]
[1751544230585,7.902,2599.5,2599.2,4.05928098]
[1751544231283,7.902,2599.5,2599.2,0.212]
[1751544231452,7.902,2599.5,2599.2,4.05932686]
[1751544231883,7.902,2599.5,2599.2,0.212]
[1751544232083,7.902,2599.5,2599.2,4.05931505]
[1751544232455,7.902,2599.5,2599.2,0.212]
[1751544233148,7.902,2599.5,2599.2,4.05932827]
[1751544233955,7.902,2599.5,2599.2,0.212]
[1751544234471,7.902,2599.5,2599.2,4.05933138]
[1751544234672,7.902,2599.5,2599.2,0.212]
[1751544234872,7.902,2599.5,2599.2,4.05933002]
[1751544235373,7.902,2599.5,2599.2,0.212]
[1751544235552,7.902,2599.5,2599.2,4.05929501]
[1751544236802,7.902,2599.5,2599.2,0.212]
[1751544237603,7.902,2599.5,2599.2,4.05932947]
[1751544237772,7.902,2599.5,2599.2,0.212]
[1751544238382,7.902,2599.5,2599.2,4.05933334]
[1751544239007,7.902,2599.5,2599.2,0.212]
[1751544239712,7.902,2599.5,2599.2,0.02]
[1751544239924,0.192,2599.4,2599.2,0.02]
[1751544240095,7.889,2599.3,2599.2,0.02]
[1751544245031,0.01,2600.9,2599.4,0.55]
[1751544245232,0.01,2600.9,2600.7,4.63201862]
[1751544245233,0.90761522,2600.8,2600.7,4.63201862]
[1751544245431,1e-08,2600.9,2600.8,3.84497077]
[1751544245596,1e-08,2600.9,2600.8,4.07542047]
[1751544245797,2.015,2601.3,2601.2,3.84437951]
[1751544246127,2.015,2601.3,2601.2,4.0748233]
[1751544246332,0.01,2601.5,2601.4,11.74623606]
[1751544246528,0.01,2601.6,2601.5,3.84393619]
[1751544246731,0.01,2601.6,2601.5,3.88237555]
[1751544246899,0.01,2601.7,2601.5,3.88237555]
[1751544246900,0.01,2601.7,2601.6,3.84378843]
[1751544247093,0.01,2601.7,2601.6,4.71429483]
[1751544247297,0.01,2601.7,2601.6,4.94473271]
[1751544248410,0.01,2601.7,2601.6,5.30104469]
[1751544248608,0.01,2601.7,2601.6,5.26260681]
[1751544248828,0.01,2601.7,2601.6,4.39210041]
[1751544250147,0.01,2601.7,2601.6,4.03578843]
[1751544259740,0.01,2601.7,2601.6,4.07422631]
[1751544260726,0.01,2601.7,2600.8,0.7645]
[1751544260927,8.021,2601.6,2601.3,0.192]
[1751544261255,8.021,2601.6,2601.4,3.84400634]
[1751544261475,8.021,2601.6,2601.3,4.0361789]
[1751544262262,8.021,2601.6,2601.4,3.84405814]
[1751544265165,8.021,2601.6,2601.3,4.03615064]
[1751544265657,8.021,2601.6,2601.3,0.192]
[1751544266142,8.021,2601.6,2601.3,4.03621316]
[1751544267639,10.025,2601.5,2601.4,3.84408128]
[1751544269543,10.025,2601.5,2601.3,4.03617127]
[1751544270145,10.025,2601.5,2601.3,4.05617127]
[1751544271040,10.025,2601.5,2601.3,0.212]
[1751544271247,10.025,2601.5,2601.3,0.02]
[1751544271447,0.7744,2601.4,2601.3,0.02]
[1751544275261,0.7744,2601.4,2601.3,0.37886653]
[1751544276581,0.7744,2601.4,2601.3,0.02]
[1751544278665,10.217,2601.5,2601.3,0.02]
[1751544278872,0.192,2601.5,2601.3,0.02]
[1751544279077,9.968,2601.4,2601.3,3.86423173]
[1751544280492,9.968,2601.4,2601.3,0.02]
[1751544280700,9.968,2601.4,2601.3,3.86423173]
[1751544281198,9.968,2601.4,2601.3,0.02]
[1751544281901,1.987,2601.4,2601.3,3.86423173]
[1751544282080,9.963,2601.4,2601.3,3.86423173]
[1751544282399,2.04711107,2601.6,2601.5,3.84393619]
[1751544282599,12.00811107,2601.6,2601.5,3.84393619]
[1751544283301,12.00811107,2601.6,2601.3,3.86416784]
[1751544283699,12.00811107,2601.6,2601.4,3.84405618]
[1751544285208,19.11160401,2601.6,2601.3,0.02]
[1751544285410,19.11160401,2601.6,2601.3,3.86423064]
[1751544285710,9.15060401,2601.6,2601.3,3.86423064]
[1751544285914,9.954,2601.5,2601.3,3.86423064]
[1751544286071,2.04711107,2601.6,2601.5,3.84393619]
[1751544286271,11.99911107,2601.6,2601.5,4.03593619]
[1751544287785,12.00411107,2601.6,2601.5,4.03593619]
[1751544289404,9.967,2601.6,2601.5,4.03593619]
[1751544291374,9.96,2601.6,2601.5,4.90153505]
[1751544292618,9.96,2601.6,2601.5,4.03593619]
[1751544300727,9.96,2601.6,2601.3,0.02]
[1751544300728,27.06349294,2601.6,2601.3,0.02]
[1751544300925,27.06349294,2601.6,2601.3,0.212]
[1751544301131,27.06349294,2601.6,2601.3,4.05622698]
[1751544301829,9.929,2601.5,2601.3,4.05615716]
[1751544302031,9.929,2601.5,2601.3,0.212]
[1751544302327,9.929,2601.5,2601.3,4.05620711]
[1751544303632,9.929,2601.5,2601.3,0.212]
[1751544305129,7.10349294,2601.4,2601.3,0.02]
[1751544305348,7.91279294,2601.4,2601.3,0.02]
[1751544312735,0.01,2601.6,2601.3,0.02]
[1751544312905,7.938,2601.6,2601.5,3.84393619]
[1751544314011,7.938,2601.6,2601.4,3.84400895]
[1751544314648,7.938,2601.6,2601.5,3.84393619]
[1751544315561,7.938,2601.6,2601.4,3.844072]
[1751544315562,7.938,2601.6,2601.4,3.84401845]
[1751544315756,7.938,2601.6,2601.3,4.05611779]
[1751544316256,9.892,2601.5,2601.4,3.84395152]
[1751544316616,9.892,2601.5,2601.4,4.03595152]
[1751544317548,0.01,2601.6,2601.5,3.84393619]
[1751544317751,9.901,2601.6,2601.5,3.84393619]
[1751544318136,9.901,2601.6,2601.4,4.03599556]
[1751544318316,7.928,2601.5,2601.4,4.03599556]
[1751544318518,9.89,2601.5,2601.4,4.03599556]
[1751544319150,9.89,2601.5,2601.4,4.03608395]
[1751544320165,1.972,2601.6,2601.5,4.63613619]
[1751544320317,9.898,2601.6,2601.5,4.63613619]
[1751544324459,1.972,2601.6,2601.5,4.63613619]
[1751544324638,1.972,2601.6,2601.5,4.67457555]
[1751544324639,9.889,2601.6,2601.5,4.67457555]
[1751544324839,9.889,2601.6,2601.5,5.64600887]
[1751544330274,7.919,2601.6,2601.5,5.64600887]
[1751544330938,7.919,2601.6,2601.5,5.68444823]
[1751544330939,0.01,2601.6,2601.5,5.68444823]
[1751544332639,0.01,2601.6,2601.5,6.83396568]
[1751544333436,0.01,2601.6,2601.5,5.68444823]
[1751544333767,0.01,2601.8,2601.7,4.64114069]
[1751544333943,1e-08,2601.8,2601.7,6.97233141]
[1751544334556,1e-08,2601.8,2601.7,14.87733141]
[1751544334755,0.01,2602.0,2601.7,14.87733141]
[1751544334756,1e-08,2602.0,2601.9,4.64084524]
[1751544334959,1e-08,2602.1,2602.0,4.64069754]
[1751544335158,1e-08,2602.1,2602.0,5.5275605]
[1751544335956,1e-08,2602.1,2602.0,4.69162853]
[1751544336175,1e-08,2602.1,2602.0,3.84319754]
[1751544338789,1e-08,2602.1,2601.9,4.0352617]
[1751544339294,1e-08,2602.1,2601.9,0.23043345]
[1751544339494,1e-08,2602.1,2601.9,4.0737141]
[1751544340196,1e-08,2602.1,2601.9,4.03528065]
[1751544341793,1e-08,2602.1,2601.9,4.03525475]
[1751544342001,1e-08,2602.1,2601.9,0.192]
[1751544342163,1e-08,2602.1,2601.9,4.0353382]
[1751544342365,1.949,2602.0,2601.9,0.192]
[1751544342561,1.949,2602.0,2601.6,3.84374011]
[1751544342787,7.894,2601.9,2601.8,0.192]
[1751544343100,0.8295,2601.8,2601.6,0.192]
[1751544343766,7.93299294,2601.8,2601.6,0.192]
[1751544347774,10.0,2601.7,2601.6,0.192]
[1751544347979,10.0,2601.7,2601.5,0.02]
[1751544348187,7.888,2601.6,2601.5,0.02]
[1751544348931,9.838,2601.6,2601.5,0.02]
[1751544349090,9.838,2601.6,2601.5,0.212]
[1751544350503,9.838,2601.6,2601.5,4.05593619]
[1751544353509,9.836,2601.6,2601.5,4.05593619]
[1751544354189,9.835,2601.6,2601.5,4.05587591]
[1751544354510,1.18228865,2602.1,2601.7,3.84364043]
[1751544354714,19.836,2602.0,2601.8,4.03540483]
[1751544355906,19.836,2602.0,2601.9,3.84334524]
[1751544356892,11.949,2602.0,2601.9,3.84334524]
[1751544357093,9.836,2602.0,2601.9,3.84334524]
[1751544357878,9.836,2602.0,2601.8,4.03540897]
[1751544359014,9.836,2602.0,2601.9,3.84334524]
[1751544359198,1e-08,2602.1,2602.0,3.84319754]
[1751544359401,10.0,2602.0,2601.9,3.84326924]
[1751544359929,1e-08,2602.1,2602.0,3.84319754]
[1751544360213,9.83000001,2602.1,2602.0,3.84319754]
[1751544364818,7.88000001,2602.1,2602.0,4.64159754]
[1751544367786,7.88000001,2602.1,2602.0,3.84319754]
[1751544371136,7.88000001,2602.1,2602.0,4.70965422]
[1751544372488,7.88000001,2602.1,2602.0,4.72965422]
[1751544373331,14.98349295,2602.1,2602.0,0.02]
[1751544375227,25.73749295,2602.1,2602.0,0.02]
[1751544375429,10.7702,2601.9,2601.5,0.02]
[1751544375594,0.7702,2601.6,2601.5,0.02]
[1751544375796,20.7812,2601.6,2601.5,0.02]
[1751544377213,10.9622,2601.6,2601.5,0.02]
[1751544377410,20.5902,2601.6,2601.5,0.02]
[1751544377935,20.7822,2601.6,2601.5,0.02]
[1751544381745,27.88569294,2601.6,2601.5,0.02]
[1751544383449,27.88669294,2601.6,2601.5,0.02]
[1751544384660,57.88669294,2601.6,2601.5,0.02]
[1751544385641,58.43669294,2601.6,2601.5,0.02]
[1751544386011,66.42669294,2601.6,2601.5,0.02]
[1751544386212,10.55,2601.3,2600.5,0.02]
[1751544386413,7.10349294,2600.6,2600.5,0.02]
[1751544386613,16.92449294,2600.6,2600.5,0.02]
[1751544388149,9.821,2600.6,2600.5,0.02]
[1751544400657,0.01,2601.3,2601.2,3.84437951]
[1751544400832,1e-08,2602.1,2602.0,3.84319754]
[1751544401034,1e-08,2602.1,2602.0,5.04181729]
[1751544401236,1e-08,2602.1,2602.0,5.08024926]
[1751544402629,1e-08,2602.1,2602.0,5.04181729]
[1751544407267,1e-08,2602.1,2602.0,5.08024926]
[1751544418269,0.01,2602.5,2602.4,3.84260682]
[1751544418474,0.01,2602.5,2602.4,4.67663288]
[1751544418650,0.01,2602.5,2602.4,4.86863288]
[1751544418996,0.01,2602.5,2602.4,4.07303288]
[1751544420283,0.01,2602.5,2602.4,4.94676862]
[1751544422679,0.01,2602.5,2602.4,4.90834256]
[1751544423088,1e-08,2602.7,2602.6,4.64731153]
[1751544423458,1e-08,2602.7,2602.6,4.83931153]
[1751544423660,1e-08,2602.7,2602.6,6.17912286]
[1751544424196,1e-08,2603.2,2602.6,6.72912286]
[1751544424490,7.99,2605.4,2603.7,4.60848825]
[1751544424491,1.938,2604.4,2603.7,4.60848825]
[1751544424657,1.938,2604.4,2603.7,4.83889513]
[1751544424855,1.938,2604.4,2604.3,3.8398034]
[1751544425272,0.7685,2604.5,2604.4,3.83965596]
[1751544425474,2.6565,2604.5,2604.4,3.83965596]
[1751544426087,2.6565,2604.5,2604.3,4.0310034]
[1751544426088,2.6565,2604.5,2604.3,4.03089039]
[1751544426287,7.08750948,2604.4,2604.3,3.83970501]
[1751544427089,2.6565,2604.5,2604.4,3.83965596]
[1751544427461,2.6565,2604.5,2604.3,3.83973001]
[1751544428574,2.6565,2604.5,2604.2,0.1912]
[1751544428960,2.6565,2604.5,2604.2,4.03114954]
[1751544430780,2.6565,2604.5,2604.2,0.1912]
[1751544431088,2.6565,2604.5,2604.2,4.03113386]
[1751544432190,2.6665,2604.5,2604.2,0.1912]
[1751544432403,2.6665,2604.5,2604.2,4.03113878]
[1751544433185,2.6665,2604.5,2604.2,0.1912]
[1751544433387,2.6665,2604.5,2604.4,3.83965596]
[1751544433697,9.85,2604.5,2604.4,3.83965596]
[1751544435269,9.85,2604.5,2604.4,4.03085596]
[1751544435592,0.01,2604.5,2604.4,0.1912]
[1751544435772,1.959,2604.5,2604.4,4.03085596]
[1751544437162,1.959,2604.5,2604.4,0.1912]
[1751544437377,1.959,2604.5,2604.0,3.84017611]
[1751544437578,0.7724,2604.4,2604.2,0.1912]
[1751544440167,10.7514,2604.2,2603.4,3.84108493]
[1751544440369,10.7514,2604.2,2603.8,0.192]
[1751544442901,10.9659,2604.2,2603.8,0.192]
[1751544443115,0.01,2604.5,2604.4,3.83965596]
[1751544443472,0.01,2604.5,2604.4,3.87805251]
[1751544444203,0.01,2604.5,2604.4,4.67225251]
[1751544444509,0.01,2604.5,2604.4,5.48505882]
[1751544445074,0.01,2604.5,2604.4,5.52345537]
[1751544445581,0.01,2604.5,2604.4,5.48505882]
[1751544445908,0.01,2604.5,2604.4,5.52345537]
[1751544446105,0.01,2604.5,2604.4,4.72925537]
[1751544446906,0.01,2604.5,2604.4,5.52345537]
[1751544447071,0.01,2604.5,2604.4,14.02145537]
[1751544447072,1e-08,2604.5,2604.4,14.02145537]
[1751544447403,1e-08,2604.5,2604.4,13.98305882]
[1751544447605,1e-08,2604.5,2604.4,15.12394977]
[1751544447769,1e-08,2604.5,2604.4,15.43581782]
[1751544448102,1e-08,2604.5,2604.4,6.62594977]
[1751544448280,1e-08,2604.5,2604.4,6.32601293]
[1751544448488,1e-08,2604.5,2604.4,7.46690388]
[1751544448878,1e-08,2604.5,2604.4,7.50530043]
[1751544449083,1e-08,2604.5,2604.4,6.32601293]
[1751544449481,1e-08,2604.5,2604.4,7.85625966]
[1751544449681,1e-08,2604.5,2604.4,6.32601293]
[1751544450277,1e-08,2604.5,2604.4,7.8475783]
[1751544450500,5.08728857,2607.1,2604.4,7.8475783]
[1751544450501,0.2171859,2606.4,2606.3,4.64805684]
[1751544450699,0.2171859,2606.4,2606.3,5.19805684]
[1751544450900,0.2171859,2606.4,2606.3,4.6864254]
[1751544451086,0.2171859,2606.4,2606.3,12.67205684]
[1751544451287,0.2171859,2606.4,2606.3,14.32296172]
[1751544451899,1.948,2607.2,2607.1,3.83567949]
[1751544452211,1.948,2607.2,2606.3,14.32296172]
[1751544452212,0.8328,2607.4,2606.3,14.32296172]
[1751544452509,0.8328,2607.4,2606.6,3.83639916]
[1751544452510,11.05773477,2607.2,2606.6,3.83639916]
[1751544452809,10.7828,2607.4,2606.4,3.83657173]
[1751544453017,0.1912,2607.1,2606.7,0.1912]
[1751544454710,10.7828,2607.4,2607.1,3.83560442]
[1751544454711,0.7828,2607.4,2607.1,3.83560442]
[1751544454916,0.7828,2607.4,2607.2,3.83539006]
[1751544455117,0.7828,2607.4,2607.3,0.1912]
[1751544456997,0.7928,2607.4,2607.3,0.1912]
[1751544457331,0.01,2607.4,2607.3,4.02658526]
[1751544457498,0.01,2607.4,2607.3,0.1912]
[1751544458586,0.8001,2607.3,2607.1,0.1912]
[1751544461901,10.0,2607.2,2606.3,0.752]
[1751544462104,18.2142,2607.2,2606.7,0.1912]
[1751544463892,0.1912,2607.2,2606.7,0.1912]
[1751544464100,2.01,2607.1,2606.9,4.02709896]
[1751544464298,2.01,2607.1,2606.9,0.1912]
[1751544464724,2.01,2607.1,2606.9,4.02716448]
[1751544465333,2.01,2607.1,2606.9,4.02710956]
[1751544465534,0.9913,2607.3,2607.2,3.83553237]
[1751544465739,12.8101,2607.3,2607.2,3.83553237]
[1751544466533,12.8101,2607.3,2607.1,0.1912]
[1751544466735,12.8101,2607.3,2607.2,3.83553237]
[1751544467834,10.0,2607.3,2607.2,3.83553237]
[1751544469735,2.02,2607.4,2607.3,3.83538526]
[1751544470139,2.02,2607.4,2607.2,3.83552087]
[1751544470809,2.02,2607.4,2607.2,3.83545565]
[1751544471117,2.02,2607.4,2607.3,3.83538526]
[1751544471311,2.02,2607.4,2607.2,3.8354665]
[1751544472747,2.02,2607.4,2607.1,4.02679692]
[1751544472915,2.02,2607.4,2607.2,3.83552478]
[1751544473412,2.02,2607.4,2607.3,3.83538526]
[1751544473615,2.02,2607.4,2607.2,3.83544684]
[1751544474524,2.02,2607.4,2607.1,4.02682685]
[1751544474725,0.01,2607.4,2607.1,4.02682685]
[1751544475137,11.06773477,2607.4,2607.1,0.1912]
[1751544475524,11.25893477,2607.4,2606.9,0.1912]
[1751544475721,8.002,2607.3,2606.9,4.0271608]
[1751544475953,8.002,2607.3,2606.9,0.1912]
[1751544476314,8.002,2607.3,2606.9,4.027171]
[1751544476530,8.002,2607.3,2606.9,0.1912]
[1751544476730,0.7567,2607.2,2606.9,0.1912]
[1751544477532,0.7567,2607.2,2606.9,4.02715667]
[1751544478127,0.7567,2607.2,2606.4,4.5949998]
[1751544478128,0.7567,2607.2,2606.6,3.83636746]
[1751544478335,0.1912,2607.1,2606.7,0.35626644]
[1751544478532,11.05773477,2607.0,2606.8,0.35626644]
[1751544478749,29.24493477,2607.0,2606.9,0.35626644]
[1751544479071,29.24493477,2607.0,2606.5,0.1912]
[1751544479233,2.01,2606.9,2606.5,0.1912]
[1751544479429,2.01,2606.9,2606.5,4.0277505]
[1751544479631,2.01,2606.9,2606.5,0.1912]
[1751544479836,12.01,2606.9,2606.5,0.1912]
[1751544480364,12.01,2606.9,2606.5,4.02775881]
[1751544480564,12.01,2606.9,2606.5,0.1912]
[1751544480735,10.8086,2606.8,2606.5,0.1912]
[1751544481065,0.8086,2606.8,2606.5,0.1912]
[1751544481640,0.8086,2606.8,2606.5,4.02770268]
[1751544482249,0.55,2606.1,2606.0,1.30552109]
[1751544482448,10.0,2605.7,2605.3,2.29006551]
[1751544482648,10.0,2605.7,2604.7,0.7995]
[1751544482649,11.05773477,2605.5,2604.7,0.7995]
[1751544482863,2.90487378,2605.4,2604.8,3.83904238]
[1751544483053,8.032,2605.3,2604.8,3.83904238]
[1751544483369,8.032,2605.3,2604.7,4.63871151]
[1751544483370,8.032,2605.3,2604.7,0.7995]
[1751544483570,8.7922,2605.3,2604.7,0.7995]
[1751544483867,0.35874499,2605.2,2604.6,3.83935001]
[1751544484166,0.35874499,2605.1,2604.6,3.83935001]
[1751544484371,0.35874499,2605.2,2604.7,3.83921125]
[1751544484535,10.04,2605.1,2604.7,3.83913991]
[1751544485070,10.04,2605.1,2604.7,3.83920275]
[1751544485948,10.04,2605.1,2604.6,3.83928383]
[1751544486350,10.04,2605.1,2604.8,3.83905991]
[1751544486951,0.35743878,2605.0,2604.8,3.83905991]
[1751544487148,0.35743878,2604.9,2604.8,3.83905991]
[1751544487360,10.04,2605.1,2604.8,3.83905991]
[1751544487361,0.35743878,2605.0,2604.9,3.83891896]
[1751544487667,2.011,2605.1,2605.0,3.83877159]
[1751544488053,10.8059,2605.6,2605.3,3.83825305]
[1751544488259,0.35712564,2605.5,2605.3,3.83825305]
[1751544488569,2.011,2605.6,2605.3,3.83827302]
[1751544489947,2.011,2605.6,2605.5,3.83803492]
[1751544492281,2.011,2605.6,2605.0,0.8152]
[1751544492282,10.783,2605.5,2605.0,0.02]
[1751544492500,21.84073477,2605.5,2605.0,0.02]
[1751544492976,10.2272,2605.4,2605.2,3.83840685]
[1751544493377,10.2272,2605.4,2605.3,3.83832955]
[1751544493751,10.2272,2605.4,2605.2,3.83839663]
[1751544494354,10.2272,2605.4,2605.3,3.83832955]
[1751544494767,10.036,2605.4,2605.3,3.83832955]
[1751544495807,10.036,2605.4,2605.2,0.1912]
[1751544496306,10.036,2605.4,2605.2,4.02967102]
[1751544496504,10.036,2605.4,2605.3,3.83832955]
[1751544496871,10.036,2605.4,2605.2,4.02959305]
[1751544497706,10.036,2605.4,2605.1,3.83853798]
[1751544498005,10.036,2605.4,2605.2,3.83847073]
[1751544499004,10.036,2605.4,2605.3,3.83832955]
[1751544499793,10.036,2605.4,2605.2,3.83840255]
[1751544500306,10.036,2605.4,2605.3,3.83832955]
[1751544500506,10.0178717,2605.4,2605.3,3.83832955]
[1751544500869,10.0178717,2605.4,2605.2,3.83839813]
[1751544501600,10.0178717,2605.4,2605.3,3.83832955]
[1751544501980,10.0178717,2605.4,2605.2,3.83839526]
[1751544503305,10.0178717,2605.4,2605.3,3.83832955]
[1751544503806,10.0178717,2605.4,2605.2,3.83840037]
[1751544504208,10.0178717,2605.4,2605.1,0.1912]
[1751544504878,10.0178717,2605.4,2605.0,0.02]
[1751544505077,10.2090717,2605.4,2605.0,0.02]
[1751544508482,0.3585077,2605.3,2605.0,0.02]
[1751544508686,8.1852,2605.2,2605.0,0.02]
[1751544509383,0.35881348,2605.1,2605.0,0.02]
[1751544510388,0.35881348,2605.1,2605.0,3.85877159]
[1751544511000,8.1852,2605.2,2605.0,3.85877159]
[1751544511423,0.35914975,2605.1,2605.0,0.02]
[1751544511791,0.35914975,2605.1,2605.0,3.85877159]
[1751544512115,0.35914975,2605.1,2605.0,0.02]
[1751544512320,0.35967022,2605.1,2605.0,0.02]
[1751544512691,20.58223597,2605.1,2605.0,0.02]
[1751544513015,20.58223597,2605.1,2604.4,3.85963368]
[1751544513016,10.7412,2605.0,2604.4,3.85963368]
[1751544513315,0.1912,2604.7,2604.4,3.85963368]
[1751544513490,10.35167022,2604.6,2604.4,3.85963368]
[1751544513689,0.35967022,2604.5,2604.4,3.85963368]
[1751544513913,0.35967022,2604.5,2604.4,0.02]
[1751544515319,0.35944824,2604.5,2604.4,0.02]
[1751544522212,0.35898396,2604.5,2604.4,0.02]
[1751544525110,0.55018396,2604.5,2604.4,0.02]
[1751544525743,21.60791873,2604.5,2604.4,0.02]
[1751544526045,0.7653,2604.2,2603.9,0.02]
[1751544526343,17.09028866,2604.0,2603.9,0.02]
[1751544526542,19.43127262,2604.0,2603.9,0.02]
[1751544527941,12.34098396,2604.0,2603.9,0.02]
[1751544533547,12.34050177,2604.0,2603.9,0.02]
[1751544536668,12.34057752,2604.0,2603.9,0.02]
[1751544538047,20.33057752,2604.0,2603.9,0.02]
[1751544538728,21.63447752,2604.0,2603.9,0.02]
[1751544538929,22.69718533,2604.0,2603.9,0.02]
[1751544539346,23.61577378,2604.0,2603.9,0.02]
[1751544540170,22.55306597,2604.0,2603.9,0.02]
[1751544540530,22.55325751,2604.0,2603.9,0.02]
[1751544541265,21.24935751,2604.0,2603.9,0.02]
[1751544542029,20.33057752,2604.0,2603.9,0.02]
[1751544542358,21.24985083,2604.0,2603.9,0.02]
[1751544544445,20.52257752,2604.0,2603.9,0.02]
[1751544544746,28.26157752,2604.0,2603.9,3.86039325]
[1751544545053,27.903,2604.0,2603.9,3.86039325]
[1751544545629,0.01,2604.5,2604.2,3.83995084]
[1751544545955,0.01,2604.5,2604.3,3.8398034]
[1751544545956,11.983,2604.4,2604.3,3.8398034]
[1751544546131,21.19422612,2604.4,2604.3,3.8398034]
[1751544546337,11.19422612,2604.4,2604.3,3.8398034]
[1751544546533,1.983,2604.4,2604.3,3.8398034]
[1751544546854,9.915,2604.4,2604.3,3.8398034]
[1751544547032,1.983,2604.4,2604.3,3.8398034]
[1751544547234,9.915,2604.4,2604.3,3.8398034]
[1751544549254,1.983,2604.4,2604.3,3.8398034]
[1751544549644,1.983,2604.4,2604.3,4.70575593]
[1751544549849,1.983,2604.4,2604.3,4.74415396]
[1751544550430,1.983,2604.4,2604.3,5.55255396]
[1751544550634,0.01,2604.5,2604.4,4.64805596]